bitfinex/quotes_SOLUSD_20250520
["timestamp","ask_amount","ask_price","bid_price","bid_amount"]
[1747776438976,18.64964886,168.16,168.11,26.0]
[1747776439966,20.81474872,168.15,168.11,26.0]
[1747776447480,5.94636379,168.17,168.11,26.0]
[1747776449765,20.81179586,168.18,168.11,26.0]
[1747776450258,5.94601022,168.18,168.11,26.0]
[1747776450677,5.94601022,168.18,168.12,1.6351]
[1747776450986,5.94494976,168.21,168.13,6.5479]
[1747776451158,5.94494976,168.21,168.17,26.0]
[1747776451664,41.60049762,168.24,168.17,26.0]
[1747776451665,14.86049762,168.24,168.17,26.0]
[1747776453778,14.86049762,168.24,168.18,1.6351]
[1747776454354,5.9435364,168.25,168.18,1.6351]
[1747776455755,20.80059232,168.27,168.2,26.0]
[1747776459271,26.74,168.33,168.2,26.0]
[1747776459272,20.79677206,168.3,168.22,26.0]
[1747776460270,14.85500142,168.3,168.22,26.0]
[1747776461581,14.85500142,168.3,168.24,26.0]
[1747776462165,14.85500142,168.3,168.24,27.6025]
[1747776464786,31.80773024,168.3,168.24,27.6025]
[1747776466397,18.64964886,168.27,168.2,31.3625]
[1747776466781,18.64964886,168.27,168.23,26.0]
[1747776467671,18.64964886,168.27,168.2,31.3625]
[1747776467993,18.64964886,168.27,168.21,26.0]
[1747776468593,20.80114108,168.26,168.21,26.0]
[1747776469792,18.64964886,168.25,168.21,26.0]
[1747776470090,18.64964886,168.25,168.19,26.0]
[1747776470703,18.64964886,168.23,168.16,1.6145]
[1747776471001,18.64964886,168.23,168.18,26.0]
[1747776471990,35.60237768,168.23,168.18,26.0]
[1747776472666,18.64964886,168.21,168.16,1.6145]
[1747776472911,35.60237768,168.21,168.15,29.76]
[1747776473076,35.60237768,168.21,168.14,26.0]
[1747776473774,20.80856123,168.2,168.14,26.0]
[1747776473982,20.80856123,168.2,168.12,1.659]
[1747776474205,45.36964886,168.19,168.12,1.659]
[1747776474502,62.32237768,168.19,168.14,26.0]
[1747776474870,62.32237768,168.19,168.06,8.2383]
[1747776474871,18.64964886,168.17,168.06,8.2383]
[1747776475077,35.60237768,168.17,168.06,8.2383]
[1747776475380,35.60237768,168.17,168.09,26.0]
[1747776476288,18.64964886,168.15,168.09,26.0]
[1747776477281,18.64964886,168.15,168.06,8.2383]
[1747776477604,18.64964886,168.13,168.06,8.2383]
[1747776477782,18.64964886,168.13,168.09,26.0]
[1747776478700,5.94813228,168.12,168.09,26.0]
[1747776479601,35.60237768,168.11,168.02,8.2383]
[1747776479986,35.60237768,168.08,168.0,29.76]
[1747776480187,18.64964886,168.06,168.03,26.0]
[1747776480881,5.95060993,168.05,168.0,29.76]
[1747776481275,18.64964886,168.04,167.98,7.8427]
[1747776481477,35.60237768,168.04,167.98,7.8427]
[1747776481700,35.60237768,168.04,167.98,27.6321]
[1747776482289,20.82961375,168.03,167.98,27.6321]
[1747776482494,18.64964886,168.02,167.98,27.6321]
[1747776483503,5.95202666,168.01,167.98,27.6321]
[1747776483879,5.95202666,168.01,167.98,26.0]
[1747776484603,35.60237768,168.0,167.94,7.8427]
[1747776484904,5.95202666,168.01,167.97,26.0]
[1747776485803,5.95202666,168.01,167.94,7.8427]
[1747776487211,18.64964886,168.0,167.94,7.8427]
[1747776488117,35.60237768,168.0,167.94,1.6321]
[1747776488413,18.64964886,167.98,167.94,1.6321]
[1747776488782,18.64964886,167.96,167.9,37.5409]
[1747776489114,16.95272882,167.98,167.93,26.0]
[1747776489318,18.64964886,167.96,167.93,26.0]
[1747776489484,35.60237768,167.96,167.9,1.6371]
[1747776490307,16.95272882,167.95,167.9,1.6371]
[1747776490991,35.60237768,167.96,167.9,1.6371]
[1747776491393,18.64964886,167.96,167.9,1.6371]
[1747776491593,16.95272882,167.95,167.9,1.6371]
[1747776491810,18.64964886,167.95,167.89,26.0]
[1747776492119,16.95272882,167.94,167.86,7.6951]
[1747776492325,16.95272882,167.94,167.89,26.0]
[1747776493304,18.64964886,167.92,167.89,26.0]
[1747776494025,5.95486214,167.93,167.89,26.0]
[1747776497598,5.95308965,167.98,167.89,26.0]
[1747776497807,18.64964886,167.97,167.89,26.0]
[1747776498502,35.60237768,167.97,167.89,26.0]
[1747776498827,18.64964886,167.97,167.89,26.0]
[1747776499798,18.64964886,167.95,167.89,26.0]
[1747776501524,5.95379852,167.96,167.89,26.0]
[1747776501525,18.64964886,167.93,167.89,26.0]
[1747776503129,35.60237768,167.93,167.89,26.0]
[1747776503511,18.64964886,167.89,167.82,1.5207]
[1747776503815,18.64964886,167.87,167.82,1.5207]
[1747776504706,35.60237768,167.87,167.82,1.5207]
[1747776504909,18.64964886,167.87,167.82,1.5207]
[1747776505238,18.64964886,167.87,167.82,27.5207]
[1747776505544,20.85070891,167.86,167.82,27.5207]
[1747776506838,20.85070891,167.86,167.82,1.5207]
[1747776507043,35.60237768,167.85,167.77,1.5207]
[1747776507929,18.64964886,167.83,167.77,1.5207]
[1747776508639,45.42964886,167.83,167.77,1.5207]
[1747776509239,35.60237768,167.81,167.76,6.1225]
[1747776509412,35.60237768,167.82,167.76,6.1225]
[1747776509937,20.85692151,167.81,167.74,29.76]
[1747776510307,5.95912043,167.81,167.74,29.76]
[1747776511252,20.85692151,167.81,167.74,29.76]
[1747776511717,37.80965033,167.81,167.74,29.76]
[1747776511918,20.85692151,167.81,167.74,29.76]
[1747776512329,5.95912043,167.81,167.74,29.76]
[1747776513247,5.95912043,167.81,167.74,31.54846149]
[1747776513447,5.95879755,167.82,167.74,31.54846149]
[1747776513750,5.95849919,167.83,167.74,31.54846149]
[1747776516245,5.95803243,167.85,167.76,27.78826895]
[1747776516743,5.95803243,167.85,167.78,6.249]
[1747776516964,5.95746334,167.86,167.79,1.6142]
[1747776517128,5.95709672,167.87,167.8,29.7]
[1747776517751,5.95628089,167.89,167.8,55.7]
[1747776519957,5.95628089,167.89,167.83,26.0]
[1747776520831,45.42964886,167.93,167.82,26.0]
[1747776521357,18.64964886,167.93,167.82,26.0]
[1747776521683,45.42964886,167.93,167.82,26.0]
[1747776521825,45.42964886,167.93,167.84,26.0]
[1747776521826,16.95272882,167.91,167.84,26.0]
[1747776522031,18.64964886,167.9,167.84,26.0]
[1747776522227,16.95272882,167.89,167.8,29.7]
[1747776522431,18.64964886,167.88,167.83,26.0]
[1747776522859,16.95272882,167.9,167.83,26.0]
[1747776524662,56.44936081,167.89,167.83,26.0]
[1747776525270,18.64964886,167.86,167.8,29.7]
[1747776525557,18.64964886,167.84,167.79,1.6142]
[1747776525945,18.64964886,167.84,167.79,27.6142]
[1747776526148,16.95272882,167.84,167.79,1.6142]
[1747776526748,18.64964886,167.84,167.79,1.6142]
[1747776527850,16.95272882,167.84,167.79,1.6142]
[1747776528055,16.95272882,167.84,167.78,32.249]
[1747776528260,16.95272882,167.84,167.78,26.0]
[1747776528439,18.64964886,167.82,167.78,26.0]
[1747776528764,5.95912043,167.81,167.78,26.0]
[1747776529140,20.85692151,167.81,167.78,26.0]
[1747776529946,37.80965033,167.81,167.75,1.5069]
[1747776530267,20.85692151,167.81,167.76,26.0]
[1747776530636,20.85940759,167.79,167.75,1.5069]
[1747776530837,20.85940759,167.79,167.73,6.0108]
[1747776531052,18.64964886,167.78,167.73,6.0108]
[1747776531249,45.44964886,167.78,167.71,1.5483]
[1747776531477,62.40237768,167.78,167.71,1.5483]
[1747776531637,62.40237768,167.78,167.73,26.0]
[1747776531833,45.44964886,167.78,167.73,26.0]
[1747776532269,5.96054121,167.77,167.73,26.0]
[1747776533839,45.44964886,167.81,167.73,26.0]
[1747776534357,5.95947556,167.8,167.73,27.78857074]
[1747776535069,5.95947556,167.8,167.73,27.28857074]
[1747776535865,5.95947556,167.8,167.73,26.78857074]
[1747776536471,5.95947556,167.8,167.73,26.28857074]
[1747776537144,5.95947556,167.8,167.73,25.78857074]
[1747776537449,5.95947556,167.8,167.73,24.0]
[1747776537650,5.95947556,167.8,167.73,23.5]
[1747776538569,5.95947556,167.8,167.73,23.0]
[1747776538970,5.95947556,167.8,167.73,24.28855042]
[1747776539172,5.95947556,167.8,167.74,6.3479]
[1747776539471,39.50408489,167.83,167.74,6.3479]
[1747776539671,39.50408489,167.83,167.74,5.8479]
[1747776539971,56.45681371,167.83,167.74,5.8479]
[1747776540357,56.45681371,167.83,167.74,5.3479]
[1747776541063,56.45681371,167.83,167.74,4.8479]
[1747776541668,56.45681371,167.83,167.75,26.0]
[1747776542572,39.50408489,167.83,167.75,26.0]
[1747776542766,39.50408489,167.83,167.75,25.5]
[1747776544076,39.50408489,167.83,167.74,3.8479]
[1747776544871,39.50408489,167.83,167.76,26.0]
[1747776552263,39.50408489,167.83,167.77,26.0]
[1747776559093,39.50408489,167.83,167.74,31.63634483]
[1747776559989,39.50408489,167.83,167.76,26.0]
[1747776565697,86.24886519,167.83,167.76,26.0]
[1747776565989,86.24886519,167.83,167.74,3.8479]
[1747776565990,18.64964886,167.8,167.74,29.8479]
[1747776566573,16.95272882,167.8,167.74,26.0]
[1747776567801,18.64964886,167.78,167.74,26.0]
[1747776569093,18.64964886,167.76,167.68,8.31607584]
[1747776569394,18.64964886,167.76,167.68,26.0]
[1747776569999,5.96125186,167.75,167.68,26.0]
[1747776570687,20.86438151,167.75,167.67,26.0]
[1747776571399,18.64964886,167.74,167.67,26.0]
[1747776571902,5.96196267,167.73,167.67,26.0]
[1747776572200,20.86686936,167.73,167.67,26.0]
[1747776573311,5.96196267,167.73,167.67,26.0]
[1747776574102,5.96196267,167.73,167.67,27.78922527]
[1747776574701,5.96018595,167.78,167.67,27.78922527]
[1747776574890,18.64964886,167.77,167.67,27.78922527]
[1747776575779,5.96089651,167.76,167.67,27.78922527]
[1747776577012,18.64964886,167.75,167.67,26.0]
[1747776579114,5.96160724,167.74,167.67,26.0]
[1747776580416,18.64964886,167.73,167.67,26.0]
[1747776580621,18.64964886,167.73,167.65,1.5778]
[1747776580790,18.64964886,167.73,167.65,1.0778]
[1747776580990,18.64964886,167.73,167.67,26.0]
[1747776581300,5.96231814,167.72,167.67,26.0]
[1747776581718,20.86811351,167.72,167.67,26.0]
[1747776581894,18.64964886,167.71,167.65,1.0778]
[1747776582094,18.64964886,167.71,167.67,26.0]
[1747776582305,18.64964886,167.71,167.67,25.5]
[1747776583206,18.64964886,167.71,167.61,8.31607584]
[1747776583207,18.64964886,167.69,167.61,8.31607584]
[1747776583409,18.64964886,167.67,167.59,8.31607584]
[1747776584102,18.64964886,167.67,167.59,7.81607584]
[1747776584285,18.64964886,167.67,167.59,33.81607584]
[1747776584480,7.4456,167.69,167.59,7.81607584]
[1747776584687,35.60237768,167.64,167.59,7.81607584]
[1747776584908,35.60237768,167.64,167.59,7.31607584]
[1747776585317,18.64964886,167.62,167.59,7.31607584]
[1747776585688,18.64964886,167.62,167.59,6.81607584]
[1747776586188,18.64964886,167.62,167.53,1.5681]
[1747776586511,35.60237768,167.62,167.52,9.05247264]
[1747776586707,35.60237768,167.62,167.52,8.55247264]
[1747776586914,35.60237768,167.62,167.48,29.62]
[1747776586915,35.60237768,167.6,167.48,31.41123785]
[1747776587211,20.88679357,167.57,167.47,2.85944478]
[1747776587412,20.88679357,167.57,167.49,26.0]
[1747776588411,20.88679357,167.57,167.49,25.5]
[1747776589190,20.88679357,167.57,167.49,25.0]
[1747776589892,18.64964886,167.56,167.49,26.7911094]
[1747776590109,18.64964886,167.56,167.49,26.2911094]
[1747776590423,18.64964886,167.56,167.49,24.5]
[1747776590806,18.64964886,167.56,167.49,24.0]
[1747776591494,5.9676553,167.57,167.49,23.5]
[1747776591495,5.96836765,167.55,167.49,23.5]
[1747776591728,18.64964886,167.54,167.49,23.5]
[1747776592221,18.64964886,167.54,167.49,23.0]
[1747776592923,18.64964886,167.54,167.49,22.5]
[1747776593708,5.96908016,167.53,167.49,22.0]
[1747776594220,18.64964886,167.52,167.46,6.2521]
[1747776594720,18.64964886,167.52,167.46,5.7521]
[1747776595304,18.64964886,167.52,167.46,5.2521]
[1747776595609,18.64964886,167.5,167.46,5.2521]
[1747776595803,18.64964886,167.5,167.43,1.6465]
[1747776596009,18.64964886,167.5,167.44,25.5]
[1747776596208,18.64964886,167.5,167.43,1.6465]
[1747776596536,18.64964886,167.5,167.42,2.85256315]
[1747776596710,18.64964886,167.45,167.42,2.35256315]
[1747776596901,18.64964886,167.46,167.42,2.35256315]
[1747776597320,16.95272882,167.45,167.42,2.35256315]
[1747776597500,18.64964886,167.46,167.42,1.85256315]
[1747776597501,16.95272882,167.44,167.42,1.85256315]
[1747776597822,24.62229414,167.43,167.42,1.85256315]
[1747776598127,24.62229414,167.43,167.42,1.35256315]
[1747776598330,31.00509414,167.43,167.42,1.35256315]
[1747776598497,47.95782296,167.43,167.42,1.35256315]
[1747776598915,26.0,167.4,167.34,12.5]
[1747776599097,18.64964886,167.36,167.34,12.5]
[1747776599309,35.60237768,167.36,167.34,12.5]
[1747776599517,35.60237768,167.36,167.34,12.0]
[1747776599720,24.6251493,167.35,167.34,12.0]
[1747776599898,41.57787812,167.35,167.34,12.0]
[1747776600096,26.0,167.34,167.2,1.79425837]
[1747776600412,18.64964886,167.29,167.21,26.0]
[1747776601022,18.64964886,167.29,167.21,25.5]
[1747776601221,5.97800095,167.28,167.19,1.79436569]
[1747776601733,18.64964886,167.31,167.19,1.79436569]
[1747776601931,46.07569742,167.28,167.18,41.48133473]
[1747776602115,18.64964886,167.28,167.18,39.0888]
[1747776602430,27.42604856,167.27,167.18,7.9288]
[1747776602629,18.64964886,167.23,167.14,6.4635]
[1747776603020,18.64964886,167.23,167.17,26.0]
[1747776603216,18.64964886,167.26,167.14,6.4635]
[1747776603418,33.40400285,167.29,167.17,26.0]
[1747776603618,18.64964886,167.28,167.17,26.0]
[1747776603825,27.42604856,167.28,167.17,26.0]
[1747776604035,46.07569742,167.29,167.17,26.0]
[1747776604210,18.64964886,167.29,167.17,26.0]
[1747776604537,46.07569742,167.29,167.17,26.0]
[1747776604733,18.64964886,167.29,167.17,26.0]
[1747776604913,18.64964886,167.29,167.18,26.0]
[1747776605111,26.86,167.3,167.22,26.0]
[1747776605637,18.64964886,167.34,167.23,1.617]
[1747776606004,18.64964886,167.3,167.17,34.197]
[1747776606227,18.64964886,167.3,167.17,60.197]
[1747776606409,27.42604856,167.33,167.17,60.197]
[1747776606410,18.64964886,167.32,167.17,60.197]
[1747776606606,26.86,167.35,167.18,19.24755821]
[1747776606826,18.64964886,167.34,167.22,26.0]
[1747776607035,18.64964886,167.34,167.23,32.58]
[1747776607537,46.07569742,167.34,167.23,32.58]
[1747776607916,18.64964886,167.34,167.23,32.58]
[1747776608113,46.07569742,167.32,167.22,26.0]
[1747776608422,18.64964886,167.32,167.22,26.0]
[1747776608810,46.07569742,167.32,167.22,26.0]
[1747776609332,30.42257823,167.34,167.22,28.39196125]
[1747776609516,32.83553363,167.35,167.22,28.39196125]
[1747776609517,18.64964886,167.32,167.22,28.39196125]
[1747776609724,27.42604856,167.29,167.19,6.3426]
[1747776609926,27.42604856,167.29,167.2,26.0]
[1747776610236,18.64964886,167.29,167.2,26.0]
[1747776610537,27.42604856,167.31,167.2,26.0]
[1747776610725,18.64964886,167.3,167.22,26.0]
[1747776611121,18.64964886,167.31,167.22,26.0]
[1747776611326,18.64964886,167.29,167.22,26.0]
[1747776611633,18.64964886,167.29,167.19,2.39241251]
[1747776611835,18.64964886,167.27,167.17,36.60966108]
[1747776612040,18.64964886,167.27,167.17,62.60966108]
[1747776613213,18.64964886,167.27,167.17,36.60966108]
[1747776615642,32.85807124,167.28,167.17,62.60966108]
[1747776616441,26.88,167.28,167.2,26.0]
[1747776616754,51.50657791,167.31,167.2,26.0]
[1747776616913,51.50657791,167.31,167.21,6.0288]
[1747776617115,31.97617906,167.34,167.21,6.0288]
[1747776617321,18.64964886,167.33,167.21,6.0288]
[1747776617517,26.88,167.34,167.24,26.0]
[1747776617739,26.88,167.34,167.26,2.3914863]
[1747776618345,46.07569742,167.4,167.28,26.0]
[1747776618516,46.07569742,167.4,167.29,6.0288]
[1747776618717,18.64964886,167.4,167.29,6.0288]
[1747776619027,5.97371565,167.4,167.29,6.0288]
[1747776619229,5.97371565,167.4,167.3,1.5593]
[1747776619433,5.97371565,167.4,167.31,32.62]
[1747776619753,5.97337349,167.41,167.32,2.39062873]
[1747776619918,26.88,167.42,167.32,2.39062873]
[1747776620118,26.88,167.42,167.34,26.0]
[1747776620319,5.97272327,167.43,167.35,26.0]
[1747776620633,5.97193191,167.45,167.35,26.0]
[1747776621553,5.9715753,167.46,167.36,2.39005736]
[1747776621767,5.9715753,167.46,167.37,32.6]
[1747776622546,5.97086219,167.48,167.4,1.539]
[1747776622720,5.97086219,167.48,167.42,26.0]
[1747776622920,5.96979284,167.51,167.43,32.6]
[1747776623564,5.96908016,167.53,167.46,26.0]
[1747776623972,5.9676553,167.57,167.48,26.0]
[1747776624161,5.9676553,167.57,167.49,32.6]
[1747776624363,20.88679357,167.57,167.49,32.6]
[1747776625469,5.9676553,167.57,167.5,7.8613]
[1747776625674,14.9168487,167.6,167.51,26.0]
[1747776625976,14.9168487,167.6,167.51,52.88]
[1747776626852,5.96587519,167.62,167.51,52.88]
[1747776627045,20.88056317,167.62,167.51,52.88]
[1747776627684,14.91468798,167.62,167.51,55.26790867]
[1747776628772,29.82322745,167.66,167.51,55.26790867]
[1747776629856,18.64964886,167.67,167.51,55.26790867]
[1747776630879,20.87558152,167.66,167.51,55.26790867]
[1747776631976,14.91112966,167.66,167.55,26.0]
[1747776632157,14.91112966,167.66,167.59,26.0]
[1747776633173,14.91112966,167.66,167.6,26.0]
[1747776635458,5.96374045,167.68,167.6,34.2105]
[1747776635965,5.96374045,167.68,167.6,36.59711315]
[1747776636569,20.86831036,167.72,167.6,36.59711315]
[1747776637257,27.42604856,167.7,167.6,8.2105]
[1747776637474,18.64964886,167.67,167.6,1.5668]
[1747776637867,27.42604856,167.65,167.55,1.5651]
[1747776638381,18.64964886,167.61,167.54,32.28]
[1747776638882,20.88305489,167.6,167.54,32.28]
[1747776640381,18.64964886,167.59,167.54,32.28]
[1747776641846,20.8855472,167.58,167.54,32.28]
[1747776642595,20.8855472,167.58,167.52,6.2893]
[1747776643782,20.8855472,167.58,167.51,32.26]
[1747776643990,29.83293556,167.6,167.51,32.26]
[1747776645807,50.71599045,167.6,167.51,32.26]
[1747776647296,18.64964886,167.59,167.51,32.26]
[1747776647610,18.64964886,167.59,167.49,1.5651]
[1747776647611,46.07569742,167.59,167.49,1.5651]
[1747776647774,27.42604856,167.58,167.48,262.2729]
[1747776648202,46.07569742,167.57,167.48,32.26]
[1747776648515,46.07569742,167.55,167.48,32.26]
[1747776649206,18.64964886,167.51,167.43,32.26]
[1747776649411,20.89552238,167.5,167.43,32.26]
[1747776649890,20.89552238,167.5,167.4,7.8844]
[1747776649891,18.64964886,167.49,167.4,7.8844]
[1747776650390,45.48964886,167.49,167.39,281.52]
[1747776650603,45.48964886,167.49,167.39,255.52]
[1747776650808,72.91569742,167.49,167.39,255.52]
[1747776651187,5.97086219,167.48,167.39,257.90958465]
[1747776653809,5.97014925,167.5,167.39,257.90958465]
[1747776654188,20.89552238,167.5,167.39,257.90958465]
[1747776661504,20.89552238,167.5,167.39,255.52]
[1747776665722,20.89552238,167.5,167.39,32.26]
[1747776665923,18.64964886,167.46,167.39,32.26]
[1747776666096,20.9017617,167.45,167.35,7.8844]
[1747776666418,46.07569742,167.44,167.35,7.8844]
[1747776667113,18.64964886,167.42,167.35,7.8844]
[1747776667512,18.64964886,167.39,167.33,31.26]
[1747776667709,18.64964886,167.37,167.31,1.6359]
[1747776668022,18.64964886,167.37,167.28,31.26]
[1747776668023,35.77756847,167.37,167.28,31.26]
[1747776668218,18.64964886,167.34,167.28,31.26]
[1747776668422,17.12791961,167.33,167.25,8.32003721]
[1747776668722,17.12791961,167.33,167.23,287.8195]
[1747776668723,18.64964886,167.32,167.23,287.8195]
[1747776669802,18.64964886,167.32,167.23,260.9595]
[1747776670110,18.64964886,167.32,167.14,29.70865949]
[1747776670111,39.57015095,167.3,167.17,7.5398]
[1747776670317,18.64964886,167.28,167.18,31.26]
[1747776671019,27.42393819,167.27,167.18,31.26]
[1747776671226,18.64964886,167.26,167.18,31.26]
[1747776671404,18.64964886,167.25,167.18,31.26]
[1747776671721,49.06623433,167.25,167.17,7.5398]
[1747776671892,27.42393819,167.24,167.17,1.5334]
[1747776672090,18.64964886,167.19,167.13,31.28]
[1747776672290,18.64964886,167.19,167.12,1.5334]
[1747776672515,26.0,167.16,167.09,6.0064]
[1747776672720,26.0,167.18,167.09,6.0064]
[1747776672925,18.64964886,167.17,167.09,6.0064]
[1747776673623,26.86,167.16,167.09,5.5064]
[1747776674319,27.42393819,167.14,167.02,4.03232276]
[1747776674523,18.64964886,167.12,167.02,1.1374]
[1747776674713,26.88,167.11,167.02,1.1374]
[1747776675105,18.64964886,167.1,167.02,0.6374]
[1747776675305,46.07358705,167.1,167.01,31.28]
[1747776675505,18.64964886,167.1,166.98,2.39548098]
[1747776675729,26.0,167.09,166.97,2.39563489]
[1747776676024,18.64964886,167.1,166.97,27.89563489]
[1747776676223,5.98479861,167.09,166.97,1.89563489]
[1747776676527,5.98479861,167.09,166.98,6.6656]
[1747776676931,18.64964886,167.08,166.98,6.6656]
[1747776677234,18.64964886,167.08,166.98,6.1656]
[1747776677729,46.07358705,167.08,166.98,6.1656]
[1747776677931,18.64964886,167.08,166.98,5.6656]
[1747776678128,27.42393819,167.07,166.98,5.6656]
[1747776678428,48.37825777,167.03,166.91,5.24894517]
[1747776678600,18.64964886,167.01,166.91,4.74894517]
[1747776678802,18.64964886,167.01,166.91,2.35256315]
[1747776679429,18.64964886,167.01,166.91,1.85256315]
[1747776679430,18.64964886,166.97,166.91,1.85256315]
[1747776679838,27.42393819,166.99,166.91,1.85256315]
[1747776680135,26.0,166.94,166.91,1.35256315]
[1747776680312,24.6405427,166.92,166.91,1.35256315]
[1747776681029,52.06448089,166.92,166.91,1.35256315]
[1747776681214,39.6177773,166.92,166.78,1.5891]
[1747776681530,18.64964886,166.89,166.78,27.5891]
[1747776681733,46.07358705,166.91,166.78,27.5891]
[1747776681919,46.07358705,166.91,166.78,1.5891]
[1747776682234,46.07358705,166.91,166.78,27.5891]
[1747776682425,18.64964886,166.89,166.78,29.98745872]
[1747776682737,5.99161174,166.9,166.74,6.3261]
[1747776682738,27.42393819,166.86,166.74,2.39894446]
[1747776683312,46.07358705,166.87,166.75,26.0]
[1747776683621,18.64964886,166.87,166.74,1.89894446]
[1747776683813,18.64964886,166.87,166.75,26.0]
[1747776684208,18.64964886,166.87,166.74,7.89630562]
[1747776684209,18.64964886,166.87,166.77,26.0]
[1747776684408,5.99304806,166.86,166.79,2.39822531]
[1747776684608,5.99269525,166.87,166.81,26.0]
[1747776684907,26.9,166.88,166.81,26.0]
[1747776685426,18.64964886,166.92,166.82,26.0]
[1747776685611,18.64964886,166.95,166.82,26.0]
[1747776685811,26.92,167.01,166.83,52.92]
[1747776686132,26.92,167.01,166.87,26.0]
[1747776686509,5.98802395,167.0,166.88,2.39693192]
[1747776686863,26.92,167.05,166.92,26.0]
[1747776687007,16.356,167.13,166.92,26.0]
[1747776687008,26.92,167.1,166.96,26.0]
[1747776687207,5.98479861,167.09,166.97,26.0]
[1747776687434,26.92,167.1,167.01,26.0]
[1747776687638,26.92,167.1,167.05,26.0]
[1747776687809,5.98265031,167.15,167.05,26.0]
[1747776688006,5.98265031,167.15,167.06,26.0]
[1747776688331,5.98234262,167.16,167.06,26.0]
[1747776688627,5.98086124,167.2,167.07,28.39420602]
[1747776688832,5.98086124,167.2,167.11,26.0]
[1747776689131,83.54882084,167.26,167.11,26.0]
[1747776689335,41.86710488,167.26,167.11,26.0]
[1747776689523,26.92,167.26,167.15,26.0]
[1747776689729,26.92,167.26,167.19,26.0]
[1747776691030,5.97800435,167.28,167.19,26.0]
[1747776691527,5.97764239,167.3,167.19,28.39246726]
[1747776691737,5.97764239,167.3,167.19,55.31246726]
[1747776691919,5.97764239,167.3,167.19,55.31248648]
[1747776692836,20.91821353,167.32,167.19,55.31248648]
[1747776693033,5.97657183,167.32,167.19,55.31248648]
[1747776693212,5.97657183,167.32,167.19,61.76498648]
[1747776694242,41.85884457,167.35,167.19,61.76498648]
[1747776694243,5.97585753,167.34,167.19,63.28328648]
[1747776694811,5.97585753,167.34,167.19,73.28328648]
[1747776695012,5.97585753,167.34,167.23,26.0]
[1747776695213,20.91434501,167.35,167.27,26.0]
[1747776695840,62.59606097,167.35,167.27,26.0]
[1747776696417,60.33136482,167.32,167.23,32.62]
[1747776697019,18.64964886,167.29,167.22,26.0]
[1747776697223,20.92300334,167.28,167.22,26.0]
[1747776697938,20.92300334,167.28,167.21,32.62]
[1747776697939,18.64964886,167.27,167.21,32.62]
[1747776698119,18.64964886,167.27,167.21,26.0]
[1747776698320,18.64964886,167.27,167.17,32.62]
[1747776698528,18.64964886,167.27,167.19,26.0]
[1747776698733,60.33136482,167.27,167.16,32.62]
[1747776698945,18.64964886,167.23,167.11,8.0285]
[1747776699249,18.64964886,167.21,167.15,26.0]
[1747776701048,18.64964886,167.19,167.09,32.62]
[1747776701351,41.68171596,167.2,167.09,32.62]
[1747776701352,18.64964886,167.15,167.09,32.62]
[1747776701544,18.64964886,167.15,167.04,39.0497]
[1747776701760,60.33136482,167.13,166.98,230.3836]
[1747776702053,60.33136482,167.1,166.99,32.62]
[1747776702222,18.64964886,167.08,166.99,32.62]
[1747776702850,18.64964886,167.07,166.99,32.62]
[1747776703054,60.33136482,167.07,166.99,32.62]
[1747776703556,18.64964886,167.05,166.99,32.62]
[1747776703964,18.64964886,167.05,166.96,1.6216]
[1747776704252,18.64964886,167.05,166.97,26.0]
[1747776705036,18.64964886,167.05,166.96,1.6216]
[1747776705431,5.98659003,167.04,166.97,26.0]
[1747776706637,5.98551505,167.07,166.97,28.39563568]
[1747776706853,24.63516391,167.07,166.97,28.39563568]
[1747776707465,14.96177577,167.1,166.97,34.38473551]
[1747776707466,5.98516142,167.08,166.97,34.38473551]
[1747776707763,5.98516142,167.08,166.97,61.30473551]
[1747776708573,41.87662578,167.15,166.97,61.30473551]
[1747776708739,18.64964886,167.14,166.98,18.64964886]
[1747776708940,32.90265031,167.15,167.03,26.0]
[1747776709161,32.90265031,167.15,167.04,32.64]
[1747776709762,18.64964886,167.14,167.04,32.64]
[1747776710746,5.98336624,167.13,167.04,32.64]